Cogmind - Beta 15 @@@ ROGUE MODE // 2025.09.21 @ 02:48:45 Player: Zaros426 Result: Destroyed by G-73 Enforcer with Phase Gun Performance ------------- Evolutions (9) 4500 Regions Visited (21) 4200 Robots Destroyed (272) 1360 Value Destroyed (11652) 11652 Prototype IDs (58) 1160 Alien Tech Used (14) 2800 Bonus (30381) 30381 TOTAL SCORE: 56053 Bonus ------- Triggered Max Security 2000 High Alert Combat Kills 1866 Follower Combat Kills 963 Registered with UFD 300 Met Optimus in HQ 500 Met Zhirov 300 Met Warlord at Base 500 MAIN.C Attacked Warlord 500 Warlord Defense Kills 3830 Used Core Reset Matrix 3000 Hacked Protovariant 500 Met Sigix 2000 Integrated Exoskeleton 5000 Met MAIN.C 5000 Destroyed MAIN.C Shell 5000 Friendly Fire -878 Cogmind --------- Core Integrity 0/1600 Matter 337/425 Energy 700/700 System Corruption 4% Temperature Cool (9) Movement Walking (30) Location -1/Command Parts ------- > --- POWER (1) -------- Quantum Reactor > --- PROPULSION (3) --- Sigix Exoskeleton > --- UTILITY (5) ------ Large Storage Unit Nanoactuators Nanoactuators Advanced Phase Shifter Graphene Brace > --- WEAPON (2) ------- Sigix Broadsword > --- INVENTORY (15) --- Experimental Energy Well (600) Advanced ECM Suite Advanced Force Field High-powered Transdimensional Reconstructor Microwarp Drive Sigix Sheargun Sigix Sheargun Sigix Sheargun Sigix Containment Pod Peak State ------------ > --- POWER ------------ Quantum Reactor > --- PROPULSION ------- Sigix Exoskeleton > --- UTILITY ---------- Large Storage Unit Advanced Phase Shifter Microwarp Drive > --- WEAPON ----------- Sigix Broadsword > --- INVENTORY -------- Experimental Energy Well Nanoactuators Nanoactuators Advanced ECM Suite Graphene Brace Advanced Force Field High-powered Transdimensional Reconstructor Sigix Sheargun Sigix Sheargun Sigix Sheargun Sigix Containment Pod [Rating: 262] Favorites ----------- Power Makeshift Power Source Engine Makeshift Power Source Power Core Neutrino Core Reactor Improved Quantum Reactor Propulsion Cooled Gravmag System Treads Light Treads Leg Sigix Exoskeleton Wheel Armored Wheel Hover Unit Cooled Gravmag System Flight Unit Cooled Nuclear Pulse Thruster Utility Enhanced Optical Array Device Seismic Detector Storage High-capacity Storage Unit Processor Enhanced Optical Array Hackware Ghost Barrier Protection Enhanced Scrap Shield Artifact Core Physics Calibrator Weapon Subdweller Machine Gun Energy Gun Sigix Sheargun Energy Cannon Improved EM Pulse Cannon Ballistic Gun Subdweller Machine Gun Launcher Smartbomb Launcher Special Weapon Junk Cannon Impact Weapon Heavy Flail Slashing Weapon Greatsword Piercing Weapon Heavy Pick Special Melee Weapon Improved Datajack Build | -11 -10 -10 -7 -7 -5 -5 -5 -5 -4 -4 -4 -4 -4 -3 -3 -3 -2 -2 -2 -1 -1 ------- Run | Yrd Mat Sub Rec Scr Fac Upp Upp Zhi Pro Fac Upp Upp War Pro Res Qua Res Tes Sec Acc Com Slots Evolved 17 | . . . . . 10 . . . . 2 . . . . 2 . 1 . . 2 . Power 1 | . . . . . 1 . . . . . . . . . . . . . . . . Propulsion 5 | . . . . . 4 . . . . . . . . . 1 . . . . . . Utility 11 | . . . . . 5 . . . . 2 . . . . 1 . 1 . . 2 . Weapon . | . . . . . . . . . . . . . . . . . . . . . . Parts Attached 219 | 6 12 12 5 8 28 5 3 5 . 11 3 1 25 1 7 9 6 15 25 15 17 Power 26 | . 1 2 . 2 2 . . 1 . 2 . . 4 . 1 . 1 3 4 2 1 Engine 5 | . 1 2 . 1 . . . . . . . . . . . . . 1 . . . Core 8 | . . . . 1 2 . . . . 2 . . 2 . . . . . 1 . . Reactor 13 | . . . . . . . . 1 . . . . 2 . 1 . 1 2 3 2 1 Propulsion 50 | 2 4 1 1 2 12 . 1 3 . 1 . . 7 . 1 2 2 3 8 . . Treads 8 | 2 2 1 1 . 2 . . . . . . . . . . . . . . . . Leg 1 | . . . . . . . . . . . . . 1 . . . . . . . . Wheel 7 | . 2 . . 2 3 . . . . . . . . . . . . . . . . Hover 32 | . . . . . 7 . 1 2 . 1 . . 5 . 1 2 2 3 8 . . Flight 2 | . . . . . . . . 1 . . . . 1 . . . . . . . . Utility 101 | 1 3 3 1 2 13 3 2 1 . 6 2 1 8 1 4 5 2 8 9 11 15 Device 57 | 1 1 1 . . 8 1 1 1 . 2 2 . 5 1 3 3 1 3 5 7 11 Storage 11 | . 2 . . 1 1 . . . . 1 . 1 1 . 1 . . 1 . 1 1 Processor 20 | . . . 1 1 3 1 1 . . 2 . . 2 . . 2 . 3 2 1 1 Hackware 4 | . . . . . . . . . . . . . . . . . 1 1 . 1 1 Protection 7 | . . 2 . . 1 1 . . . 1 . . . . . . . . . 1 1 Artifact 2 | . . . . . . . . . . . . . . . . . . . 2 . . Weapon 42 | 3 4 6 3 2 1 2 . . . 2 1 . 6 . 1 2 1 1 4 2 1 Energy Gun 7 | 3 . . . . . . . . . . . . 1 . . . . . . 2 1 Energy Cannon 9 | . . 1 . . . . . . . 1 . . 3 . 1 . 1 . 2 . . Ballistic Gun 10 | . 3 3 1 . . 2 . . . . . . 1 . . . . . . . . Ballistic Cannon . | . . . . . . . . . . . . . . . . . . . . . . Launcher 10 | . 1 2 1 . 1 . . . . . 1 . 1 . . . . 1 2 . . Special Weapon 1 | . . . . 1 . . . . . . . . . . . . . . . . . Impact Weapon 1 | . . . 1 . . . . . . . . . . . . . . . . . . Slashing Weapon 2 | . . . . 1 . . . . . . . . . . . 1 . . . . . Piercing Weapon 1 | . . . . . . . . . . 1 . . . . . . . . . . . Special Melee Weapon 1 | . . . . . . . . . . . . . . . . 1 . . . . . Unidentified Prototypes 32 | . . . . 1 1 1 . 4 . . . . 13 . . 3 1 4 1 1 2 Parts Lost 36 | . 1 2 . . . 3 . . . . . . 1 . . 2 . 7 20 . . Power 6 | . . . . . . . . . . . . . . . . . . 2 4 . . Propulsion 13 | . . 2 . . . 1 . . . . . . . . . . . 2 8 . . Utility 14 | . 1 . . . . 1 . . . . . . 1 . . 2 . 3 6 . . Weapon 3 | . . . . . . 1 . . . . . . . . . . . . 2 . . Highest Loss Streak 9 | . 1 2 . . . 1 . . . . . . 1 . . 1 . 5 9 . . To Critical Strikes . | . . . . . . . . . . . . . . . . . . . . . . Average Backups 16 | 1 13 10 18 19 21 22 23 23 23 14 13 13 12 12 11 11 9 9 8 10 10 Power . | . . . 2 1 2 2 2 1 1 . . . . . . . . . . . . Propulsion 2 | . 4 2 4 3 2 2 3 4 4 3 3 3 2 2 1 . . . . . . Utility 6 | . 2 3 6 7 6 10 8 9 10 7 7 6 6 7 7 7 5 5 4 4 5 Weapon 4 | 1 6 3 6 5 7 6 6 6 6 1 1 1 1 1 2 2 3 2 2 3 2 Tool/Special . | . . . . . . . . . . . . . . . . . . . . . . Unused Backups 60 | . . 15 3 19 7 3 3 1 . 6 . . 1 . 1 . . . . . 1 Power 2 | . . . . 2 . . . . . . . . . . . . . . . . . Propulsion 13 | . . 7 . 4 . . . . . 1 . . . . 1 . . . . . . Utility 13 | . . 2 . 7 2 . . . . 2 . . . . . . . . . . . Weapon 25 | . . 6 3 6 4 2 1 . . 3 . . . . . . . . . . . Tool/Special 7 | . . . . . 1 1 2 1 . . . . 1 . . . . . . . 1 Average Slot Usage (%) 87 | . 92 88 100 85 88 93 92 81 94 92 89 90 86 82 82 83 87 89 79 67 74 Engine 6 | . 12 14 14 10 . . . 2 5 5 5 5 . . . . . . . . . Core 3 | . . . . 3 9 11 11 8 5 4 5 5 8 4 1 . . . 2 . . Reactor 1 | . . . . . . . . . . . . . . 4 6 8 7 10 6 9 9 Treads 11 | . 27 28 28 16 7 . . . . . . . . . . . . . . . . Wheel 3 | . . . . 11 18 . . . . . . . . . . . . . . . . Hover 12 | . . . . . 6 34 34 35 35 30 31 31 30 30 32 32 29 30 21 . . Device 8 | . 9 1 . . 21 14 10 11 11 17 15 15 12 8 10 12 22 17 16 27 32 Storage 9 | . 13 7 14 14 5 5 5 5 5 5 5 5 5 4 4 4 3 3 4 9 9 Processor 11 | . . . 10 14 9 15 10 11 11 11 15 15 16 21 20 20 18 14 10 2 2 Protection 2 | . . 8 3 . . 1 5 3 5 5 5 5 4 4 4 3 . . . . . Ballistic Gun 7 | . 23 16 17 9 . 3 10 1 6 . . . . . . . . . . . . Launcher 2 | . 1 8 9 . . . . . 3 1 4 3 2 4 1 . . . . . . Slashing Weapon 2 | . . . . 4 4 3 . . . . . . . . . 3 2 3 3 8 6 Peak Build Rating 262 | 5 11 21 21 33 97 101 101 98 94 101 112 112 156 156 183 200 205 210 226 260 262 Average Rating 76 | 3 7 14 19 23 71 93 98 80 93 97 107 103 126 150 167 189 198 196 168 238 241 On Entrance 108 | . 4 11 20 21 33 96 93 98 94 93 100 112 100 156 149 183 200 205 156 226 243 Naked Turns . | . . . . . . . . . . . . . . . . . . . . . . Heaviest Build 144 | 4 51 60 60 95 132 141 141 134 127 144 67 66 83 70 105 105 98 98 75 60 72 Greatest Support 126 | 20 40 40 42 42 68 66 71 67 72 72 71 71 99 84 126 112 112 108 99 60 60 Greatest Overweight (x) 4 | 1 2 1 1 3 4 2 2 2 1 2 . . 1 . 1 1 . 1 2 . 1 Average Overweight (x) . | . . . 1 2 1 1 1 1 1 . . . . . . . . . . . . Largest Inventory Capacity 25 | 5 20 20 20 25 25 25 25 25 25 25 15 15 15 15 15 15 15 15 15 15 25 Average Capacity 18 | 5 19 13 20 22 23 25 25 25 25 15 15 15 15 15 15 15 15 15 14 15 15 Most Carried 25 | 5 18 20 20 25 25 25 25 25 24 25 15 15 15 15 15 15 15 15 15 15 15 Average Carried 17 | 1 14 10 19 21 22 24 24 24 24 15 14 14 14 14 14 14 14 14 13 14 14 Final Capacity 25 | 5 20 20 20 25 25 25 25 25 25 15 15 15 15 15 15 15 15 15 15 15 15 Final Carried 25 | 4 18 20 20 25 24 23 25 24 24 15 15 15 15 15 15 15 15 13 15 15 12 Class Distribution -------------------- 40% | Mutant 14% | Scavenger-Scout 12% | Scavenger-Mutant 5% | Alien-Sigix 5% | Derelict-Gladiator 3% | Scavenger-Sprinter Dominant Class ---------------- Scavenger-Mutant | -10/Materials Mutant | -10/Subcaves Mutant | -7/Recycling Mutant | -7/Scraptown Derelict-Gladiator | -5/Factory Derelict-Gladiator | -5/Upper Caves Scavenger-Mutant | -5/Upper Caves Scavenger-Mutant | -5/Zhirov Scavenger-Mutant | -4/Proximity Caves Derelict-Mutant | -4/Factory Scavenger-Scout | -4/Upper Caves Scavenger-Scout | -4/Upper Caves Commander-Sprinter | -4/Warlord Scavenger-Scout | -3/Proximity Caves Scavenger-Sprinter | -3/Research Scavenger-Sprinter | -3/Quarantine Scavenger-Scout | -2/Research Hacker-Scout | -2/Testing Alien-Mutant | -2/Section 7 Alien-Sigix | -1/Access Alien-Sigix | -1/Command Resources | -11 -10 -10 -7 -7 -5 -5 -5 -5 -4 -4 -4 -4 -4 -3 -3 -3 -2 -2 -2 -1 -1 ----------- Run | Yrd Mat Sub Rec Scr Fac Upp Upp Zhi Pro Fac Upp Upp War Pro Res Qua Res Tes Sec Acc Com Matter Collected 9958 | 260 336 355 162 270 1957 117 202 . 61 354 546 977 960 526 218 466 135 215 1104 144 593 Remotely . | . . . . . . . . . . . . . . . . . . . . . . Salvage Created 12612 | 149 647 117 265 . 1831 159 138 . 62 194 274 593 984 458 534 751 495 216 1812 408 2525 Parts 526 | 12 53 13 7 . 70 5 6 . 6 5 4 3 44 14 23 40 14 11 88 13 95 Haulers Intercepted 9 | . 2 . . . 1 . . . . . . . . . . . 1 1 3 1 . Recyclers Shooed 5 | . 1 . . . 2 . . . . . . . . . . . 1 . . 1 . Parts Field Recycled . | . . . . . . . . . . . . . . . . . . . . . . Retrieved Matter . | . . . . . . . . . . . . . . . . . . . . . . Parts Self-Destructed 32 | . . 10 . . . 4 2 . 2 . 2 2 . 10 . . . . . . . Prevented . | . . . . . . . . . . . . . . . . . . . . . . Kills | -11 -10 -10 -7 -7 -5 -5 -5 -5 -4 -4 -4 -4 -4 -3 -3 -3 -2 -2 -2 -1 -1 ------- Run | Yrd Mat Sub Rec Scr Fac Upp Upp Zhi Pro Fac Upp Upp War Pro Res Qua Res Tes Sec Acc Com Combat Hostiles Destroyed 181 | . 11 7 1 . 14 2 2 . 5 1 9 14 38 16 6 6 5 . 22 2 20 Melee 30 | . . . . . 6 1 . . . . . . . . . 6 1 . 2 2 12 Guns 23 | . 7 3 . . . 1 2 . . . . . . . . . . . 2 . 8 Cannons 6 | . . 1 . . . . . . . . . . . . . . . . 5 . . AOE 119 | . 4 3 1 . 8 . . . 5 . 9 14 38 16 6 . 4 . 11 . . Classes Destroyed 25 | 2 6 2 1 . 2 . . . . . 2 2 5 1 . . . . 1 . 1 Worker 23 | . 5 . . . 4 . . . . 1 . . . . . 2 . 3 3 3 2 Builder 5 | . . . . . 3 . . . . . . . . . . . . 1 1 . . Tunneler 8 | 4 . . . . 2 . . . . . . . . . 1 . 1 . . . . Hauler 9 | . 2 . . . 1 . . . . . . . . . . . 1 1 3 1 . Recycler 19 | 1 1 . 2 . 5 . . . . . . . . . 1 1 2 . 1 1 4 Mechanic 2 | . . . . . . . . . . . . 1 . . . . . . . . 1 Operator 4 | . 1 . . . . . . . . . . . . . 1 2 . . . . . Turret 2 | . . 2 . . . . . . . . . . . . . . . . . . . Watcher 14 | . 3 . . . . . . . . 2 . . . . 1 2 . 1 3 . 2 Swarmer 65 | . 6 5 . . 2 . . . 5 . 4 . 10 7 3 . 5 . 5 . 13 Cutter 1 | . . . . . . . . . . . . . . . . . . . 1 . . Saboteur 5 | . . . . . . . . . . . . . 5 . . . . . . . . Grunt 49 | . 5 . . . 8 . . . . . 3 8 12 5 1 . . . 7 . . Brawler 4 | . . . . . . . . . . . . . 1 3 . . . . . . . Duelist 3 | . . . . . . . . . . . . 3 . . . . . . . . . Protector 6 | . . . . . . . . . . . . . 5 . 1 . . . . . . Sentry 10 | . . . 1 . 3 . . . . 1 . 2 . 1 1 . . . . . 1 Hunter 5 | . . . . . . . . . . . . . 4 . . . . . 1 . . Programmer 28 | . . . . . 1 2 2 . . . . 1 . . 2 6 . . 8 2 4 Behemoth 1 | . . . . . . . . . . . 1 . . . . . . . . . . Combat Programmer 1 | . . . . . . . . . . . . . . . . . . . . . 1 Executioner 1 | . . . . . . . . . . . . . 1 . . . . . . . . Subdweller 2 | . . 2 . . . . . . . . . . . . . . . . . . . Ranger 1 | . . . . . . . . . . . . . . 1 . . . . . . . Decomposer 1 | . . . . . . . 1 . . . . . . . . . . . . . . Packrat 1 | . . . . . . . . . . . 1 . . . . . . . . . . Assembled 1 | . . . . . . . . . . . . . . . . . . . . . 1 Thug 2 | . . . . . . . . . . . . . 2 . . . . . . . . Mutant 1 | . . . . . . . . . . . 1 . . . . . . . . . . Best Kill Streak 15 | 5 5 3 2 . 7 2 1 . 4 2 4 4 15 8 6 3 5 2 12 4 7 Combat Bots Only 15 | . 3 3 1 . 4 2 1 . 4 1 4 4 15 8 5 3 4 . 5 1 5 Max Kills in Single Turn 6 | 1 3 3 2 . 2 1 1 . 2 1 3 2 6 3 2 1 5 2 3 1 2 Gunslinging . | . . . . . . . . . . . . . . . . . . . . . . Exploded 6 | . 2 3 1 . 2 . . . 2 . 3 2 6 3 2 . 4 . 3 . . Melee 1 | . . . . . 1 1 . . . . . . . . . 1 1 . 1 1 1 Uniques/NPCs Destroyed 1 | . . . . . . . . . . . . . . . . . . . . . 1 MAIN.C Shell (-1/Command) Combat | -11 -10 -10 -7 -7 -5 -5 -5 -5 -4 -4 -4 -4 -4 -3 -3 -3 -2 -2 -2 -1 -1 -------- Run | Yrd Mat Sub Rec Scr Fac Upp Upp Zhi Pro Fac Upp Upp War Pro Res Qua Res Tes Sec Acc Com Hostile Shots Fired 1519 | . 40 46 . . 69 39 17 . 22 8 17 14 43 4 78 271 17 40 247 23 524 Missed 728 | . 9 10 . . 21 8 5 . 7 4 13 6 28 1 58 177 11 20 80 5 265 Intercepted 4 | . . . . . . . . . . . . . . . . . . . . . 4 Hits 791 | . 31 36 . . 48 31 12 . 15 4 4 8 15 3 20 94 6 20 167 18 259 Melee 6 | . . . . . . . . . . . . . . . . . 1 . 5 . . Projectile 785 | . 31 36 . . 48 31 12 . 15 4 4 8 15 3 20 94 5 20 162 18 259 AOE 8 | . . 2 . . . . . . . . . . 3 . . . . . 1 . 2 Critical Strikes 56 | . 1 1 . . 3 4 1 . . . . . . . . 10 . 1 16 1 18 Actively Blocked 31 | . . . . . . . . . . . . . . . . 2 . 1 15 1 12 Part Disruptions 4 | . . . . . . . . . . . . . . . . 3 . . 1 . . Damage Taken 15571 | . 320 621 . . 577 457 144 . 359 85 52 158 447 83 288 1124 81 1407 4381 439 4548 Core 3242 | . 41 113 . . 44 35 11 . 26 17 18 . . 28 23 22 . 423 840 107 1494 Absorbed by Shields 2159 | . . . . . 188 68 110 . . 12 32 26 118 9 215 887 85 . . 6 403 Ignored by Resistances 5791 | . . . . . . . . . . . . . . . . . . . 416 455 4920 Regen/Repaired (Parts) 1963 | . . . . . . . . . . . . . 246 . . 298 165 121 879 115 139 Core Remaining (%) 69 | 100 . . . 38 . . . . 88 . . . . 94 . 87 . . 8 . . Volleys Fired 399 | 10 49 27 17 . 12 2 13 . 5 7 31 44 35 26 44 2 1 1 52 1 20 Largest 2 | 2 2 2 2 . 2 2 2 . 1 1 1 1 1 1 1 1 1 1 2 2 2 Hottest 200 | 90 90 110 80 . 79 66 66 . 39 69 46 69 46 46 113 113 20 . 200 200 200 Shots Fired 522 | 20 89 48 18 . 13 5 27 . 5 7 31 44 35 26 44 2 1 1 65 2 39 Gun 251 | 20 83 36 16 . . 5 27 . . . . . . . . . . . 23 2 39 Cannon 77 | . . 9 . . . . . . . 7 . 4 . . 32 1 . . 24 . . Launcher 194 | . 6 3 2 . 13 . . . 5 . 31 40 35 26 12 1 1 1 18 . . Special . | . . . . . . . . . . . . . . . . . . . . . . Kinetic 169 | . 69 38 18 . 12 5 27 . . . . . . . . . . . . . . Thermal 84 | 20 4 9 . . . . . . . . . . . . 25 1 . 1 24 . . Explosive 165 | . 6 1 . . 1 . . . 5 . 31 40 34 26 11 . . . 10 . . Electromagnetic 35 | . 10 . . . . . . . . 7 . 4 . . 7 . . . 7 . . Slashing 64 | . . . . . . . . . . . . . . . . . . . 23 2 39 Entropic 5 | . . . . . . . . . . . . . 1 . 1 1 1 . 1 . . Robot Hit Streak 19 | 8 7 19 6 . 7 8 12 . 10 4 . 7 1 2 5 . . 1 6 . 11 Robot Miss Streak 6 | 2 6 1 . . 2 . 1 . . 1 . 2 . . 2 . 1 . 3 . 3 Penetration Max . | . . . . . . . . . . . . . . . . . . . . . . Secondary Targets 3 | . 1 . . . . . . . . . . . . . . . . . 1 . 1 Max Gunslinging Chain 1 | . 1 . . . . . . . . . . . . . . . . . 1 . 1 Capacitor 32 | . . . . . . . . . . . . . . . 14 . . . 18 . . Shots Hit Robots 372 | 13 50 25 2 . 39 10 13 . 1 8 1 10 1 1 9 29 8 5 48 11 88 Core Hits 547 | 6 34 13 6 . 41 3 5 . 10 6 30 47 148 56 20 10 6 2 72 1 31 Critical Kills 1 | . . . 1 . . . . . . . . . . . . . . . . . . Critical Parts Destroyed 1 | . . . . . . . 1 . . . . . . . . . . . . . . Critical Strikes 18 | 1 1 . 1 . 5 2 1 . . . 1 1 . . . . 1 . 2 . 2 Burn 2 | 1 1 . . . . . . . . . . . . . . . . . . . . Destroy 1 | . . . . . . . 1 . . . . . . . . . . . . . . Smash 1 | . . . 1 . . . . . . . . . . . . . . . . . . Sever 12 | . . . . . 5 2 . . . . . . . . . . 1 . 2 . 2 Impale 2 | . . . . . . . . . . . 1 1 . . . . . . . . . Melee Attacks 383 | . . . 4 . 55 15 . . . 17 4 7 11 . . 56 16 19 44 34 101 Impact 4 | . . . 4 . . . . . . . . . . . . . . . . . . Slashing 339 | . . . . . 55 15 . . . . . . . . . 55 16 19 44 34 101 Piercing 39 | . . . . . . . . . . 17 4 7 11 . . . . . . . . Sneak Attacks 41 | . . . . . 14 . . . . 1 1 . . . . 4 3 3 3 5 7 Combat Hostiles 1 | . . . . . . . . . . . . . . . . 1 . . . . . Follow-up Attacks . | . . . . . . . . . . . . . . . . . . . . . . Damage Inflicted 59538 | 153 944 780 221 . 4171 524 406 . 399 344 2871 3969 9968 3652 1412 3025 1821 3074 6043 2443 13318 Guns 3239 | 153 642 326 16 . . 94 406 . . . . . . . . . . . 303 . 1299 Cannons 1116 | . . 110 . . . . . . . 99 . 50 . . 174 . . . 683 . . Explosions 30455 | . 302 344 149 . 1630 . . . 399 19 2796 3525 9968 3652 1171 . 903 2380 3217 . . Melee 24661 | . . . 56 . 2541 430 . . . 226 75 394 . . . 3025 918 694 1840 2443 12019 Ramming 67 | . . . . . . . . . . . . . . . 67 . . . . . . Kinetic 3166 | . 530 503 165 . 1468 94 406 . . . . . . . . . . . . . . Thermal 3966 | 153 37 110 . . . . . . . . . 50 . . 115 . . 2380 1121 . . Explosive 23977 | . 302 167 . . 162 . . . 399 19 2796 3475 9688 3652 1171 . 545 . 1601 . . Electromagnetic 1322 | . 75 . . . . . . . . 99 . 50 . . 59 . . . 1039 . . Impact 56 | . . . 56 . . . . . . . . . . . . . . . . . . Slashing 25512 | . . . . . 2541 430 . . . . . . . . . 3025 918 694 2143 2443 13318 Piercing 695 | . . . . . . . . . . 226 75 394 . . . . . . . . . Entropic 777 | . . . . . . . . . . . . . 280 . . . 358 . 139 . . Highest Corruption 13 | . . . . . . 2 4 4 4 . . . . . 2 13 . 1 1 2 4 Average Corruption 2 | . . . . . . 1 3 4 4 . . . . . 1 6 . 1 1 1 2 Corruption Purged . | . . . . . . . . . . . . . . . . . . . . . . Corruption Blocked 6 | . . . . . . . . . . . . . . . . . . . 6 . . Effects 92 | . . . . . . 5 19 3 20 . . . . . 1 12 . . 13 7 12 Message Errors 27 | . . . . . . 2 5 2 4 . . . . . 1 3 . . 3 5 2 Matter Fused 18 | . . . . . . . 3 1 4 . . . . . . 4 . . 2 1 3 Heat Flow Errors 11 | . . . . . . 1 2 . 2 . . . . . . 2 . . 3 1 . Energy Discharges 8 | . . . . . . 1 1 . 4 . . . . . . 1 . . 1 . . Parts Rejected 2 | . . . . . . . . . . . . . . . . . . . 1 . 1 Parts Fused 1 | . . . . . . . . . 1 . . . . . . . . . . . . Data Loss (minor) 10 | . . . . . . . 2 . 4 . . . . . . 1 . . 1 . 2 Data Loss (major) 8 | . . . . . . . 5 . 1 . . . . . . . . . . . 2 Misfires 5 | . . . . . . 1 1 . . . . . . . . . . . 2 . 1 Misdirections 1 | . . . . . . . . . . . . . . . . 1 . . . . . Weapon Failures 1 | . . . . . . . . . . . . . . . . . . . . . 1 Overload Shots . | . . . . . . . . . . . . . . . . . . . . . . Overflow Damage 7013 | . . . . . 694 119 . . . . 24 333 167 67 146 794 328 839 262 1340 1900 Projectiles 42 | . . . . . . . . . . . . . . . . . . . 42 . . Explosions 1576 | . . . . . 122 . . . . . 24 143 167 67 109 19 154 643 128 . . Melee 5395 | . . . . . 572 119 . . . . . 190 . . 37 775 174 196 92 1340 1900 Knockbacks . | . . . . . . . . . . . . . . . . . . . . . . Impact . | . . . . . . . . . . . . . . . . . . . . . . Kinetic . | . . . . . . . . . . . . . . . . . . . . . . Secondary . | . . . . . . . . . . . . . . . . . . . . . . Self-Inflicted Damage 1557 | . . . . . . . . . 52 . 23 . 174 . 33 120 . 810 319 26 . Shots 15 | . . . . . . . . . 1 . 1 . 1 . . 1 . 1 9 1 . Rammed 1 | . . . . . . . . . . . . . . . 1 . . . . . . Targets Rammed 1 | . . . . . . . . . . . . . . . 1 . . . . . . Kicked . | . . . . . . . . . . . . . . . . . . . . . . Crushed . | . . . . . . . . . . . . . . . . . . . . . . Highest Temperature 448 | 75 75 . 33 . 6 229 199 . 160 80 243 303 10 7 252 183 448 301 320 102 . Average Temperature 65 | 30 30 . 10 . 3 85 38 . 70 30 55 67 4 3 83 40 104 61 86 102 . Received Heat Transfer 1453 | . 141 120 . . 74 . . . 51 9 8 21 . 9 17 43 4 9 737 18 192 Effects 5 | . . . . . . . . . . . . 1 . . . . 4 . . . . Shutdowns 2 | . . . . . . . . . . . . . . . . . 2 . . . . Energy Bleed 1 | . . . . . . . . . . . . 1 . . . . . . . . . Short Circuit 1 | . . . . . . . . . . . . . . . . . 1 . . . . Damage (major) 1 | . . . . . . . . . . . . . . . . . 1 . . . . Siege Activations . | . . . . . . . . . . . . . . . . . . . . . . Martial Activations . | . . . . . . . . . . . . . . . . . . . . . . Shielding Activations . | . . . . . . . . . . . . . . . . . . . . . . Robots Disrupted 2 | . . . . . . . . . . . . . . . 1 . . . 1 . . Combat Hostiles 1 | . . . . . . . . . . . . . . . 1 . . . . . . Robots Corrupted 5 | . . . . . . . . . . 1 . . . . 1 . . . 3 . . Combat Hostiles 3 | . . . . . . . . . . 1 . . . . . . . . 2 . . Parts Fried 7 | . . . . . . . . . . 1 . . . . 6 . . . . . . Impact Corruptions 1 | . . . . . . . . . . . . . . . 1 . . . . . . Robots Melted . | . . . . . . . . . . . . . . . . . . . . . . Combat Hostiles . | . . . . . . . . . . . . . . . . . . . . . . Parts Melted 2 | . 1 . . . . . . . . . . . . . . . . . 1 . . Heat Transferred 1879 | 483 185 148 . . . . . . . . . 50 . . 111 . . 60 842 . . Parts Sabotaged . | . . . . . . . . . . . . . . . . . . . . . . Parts Stolen . | . . . . . . . . . . . . . . . . . . . . . . Parts Stripped . | . . . . . . . . . . . . . . . . . . . . . . Power Chain Reactions 3 | . . . . . . . . . . . . 1 . . . . . . 2 . . Alert | -11 -10 -10 -7 -7 -5 -5 -5 -5 -4 -4 -4 -4 -4 -3 -3 -3 -2 -2 -2 -1 -1 ------- Run | Yrd Mat Sub Rec Scr Fac Upp Upp Zhi Pro Fac Upp Upp War Pro Res Qua Res Tes Sec Acc Com Maximum Alert Level 5 | . . . . . 3 . . . . . . . . . 3 3 2 2 5 5 5 Low Security (%) 56 | 100 100 . 100 . 23 . . . . 100 . . . . 28 . . 27 49 . . Level 1 10 | . . . . . 39 . . . . . . . . . 51 6 4 55 8 . . Level 2 12 | . . . . . 21 . . . . . . . . . 18 89 95 16 13 . . Level 3 4 | . . . . . 15 . . . . . . . . . 1 3 . . 17 . . Level 4 6 | . . . . . . . . . . . . . . . . . . . . 1 55 Level 5 4 | . . . . . . . . . . . . . . . . . . . . . 44 High Security . | . . . . . . . . . . . . . . . . . . . . . . Max Security 5 | . . . . . . . . . . . . . . . . . . . 11 98 . Peak Influence 1863 | 10 178 . 79 . 1051 . . . . 163 . . . . 727 727 679 422 1766 1812 1863 Initial 1159 | . . . . . . . . . . . . . . . 221 404 408 381 200 1100 1159 Average 395 | 2 61 . 17 . 402 . . . . 93 . . . . 299 503 460 305 458 1690 1516 Influence Increases 10949 | 25 452 225 212 . 1463 71 50 . 110 261 250 434 884 625 792 723 351 535 1557 352 1577 Destroy 0b10 Robot/C 4000 | . 220 140 20 . 600 40 40 . 100 20 160 300 680 380 140 120 100 . 440 40 460 Destroy 0b10 Robot/NC 515 | 25 60 . 15 . 115 5 . . . 15 . 10 30 5 20 35 20 30 55 25 50 Destroy Leader 556 | . 60 10 . . 130 10 10 . 10 14 30 30 . 20 22 24 12 4 82 12 76 Allied During Kill 549 | . . . . . 206 1 . . . . . 4 144 175 8 . . . . . 11 Successful Hack 240 | . 16 . 37 . 20 . . . . . . . . . 24 21 24 36 14 . 48 Select Force Hacks 90 | . . . 90 . . . . . . . . . . . . . . . . . . Disable Machine 720 | . 15 . 15 . 165 . . . . 45 . . . . 60 90 15 60 165 30 60 Anti-Garrison Action 50 | . . . . . . . . . . . . . . . . . . . . . 50 Destroy Structure 2039 | . 51 . 35 . 122 . . . . 32 . . . . 368 118 135 300 516 80 282 Partial Spotted 225 | . . . . . . . . . . 45 . . . . 15 30 . . 45 75 15 Lose Combat Pursuer 1965 | . 30 75 . . 105 15 . . . 90 60 90 30 45 135 285 45 105 240 90 525 Influence Decreases 9990 | 25 327 350 189 23 418 892 274 . 110 142 303 500 199 982 401 715 399 858 821 847 1215 Entered New Map 3814 | . . 61 . 23 . 388 44 . . . 45 13 . 685 107 315 319 298 156 707 653 Time Decay 4650 | 25 317 289 189 . 358 434 230 . 110 142 258 407 199 297 214 230 80 190 339 . 342 Lost Part 306 | . 10 . . . . 30 . . . . . . . . . 20 . 70 176 . . Lost Ally 620 | . . . . . 60 40 . . . . . 80 . . 80 . . . . 140 220 Purge Threat 600 | . . . . . . . . . . . . . . . . 150 . 300 150 . . Squads Dispatched 89 | . 1 . . . 10 . . . . 2 . 1 . 1 6 8 1 3 25 23 8 Investigation 5 | . . . . . . . . . . . . . . . 1 4 . . . . . Extermination 17 | . . . . . 2 . . . . 1 . . . . 2 2 1 2 3 . 4 Reinforcement 19 | . 1 . . . 5 . . . . 1 . . . . 3 1 . . 5 . 3 Assault 40 | . . . . . 2 . . . . . . 1 . 1 . 1 . 1 13 20 1 Garrison 8 | . . . . . 1 . . . . . . . . . . . . . 4 3 . Intercept . | . . . . . . . . . . . . . . . . . . . . . . Searches Triggered . | . . . . . . . . . . . . . . . . . . . . . . Construction Impeded 4 | . . . . . 3 . . . . . . . . . 1 . . . . . . Haulers Reinforced 3 | . . . . . 1 . . . . . . . . . . . . . 2 . . Active Scanning Responses . | . . . . . . . . . . . . . . . . . . . . . . Cargo Convoy Interrupts . | . . . . . . . . . . . . . . . . . . . . . . Stealth | -11 -10 -10 -7 -7 -5 -5 -5 -5 -4 -4 -4 -4 -4 -3 -3 -3 -2 -2 -2 -1 -1 --------- Run | Yrd Mat Sub Rec Scr Fac Upp Upp Zhi Pro Fac Upp Upp War Pro Res Qua Res Tes Sec Acc Com Distress Signals 24 | . . . . . 8 . 1 . . 1 . . 1 . 1 1 . 1 5 1 4 Communications Jammed 7 | . . . . . . . . . . . . . . . . . . . 6 1 . Distress Signals 7 | . . . . . . . . . . . . . . . . . . . 6 1 . Times Spotted 480 | . 19 14 . . 39 3 3 . 5 9 10 15 92 14 33 52 9 15 60 11 77 Peak Tracking Total 18 | . 4 3 . . 8 2 2 . 4 8 4 5 18 7 13 15 6 8 14 4 18 Tactical Retreats 74 | . 1 3 . . 6 1 . . 2 2 6 4 1 2 3 9 2 3 10 4 15 Traps | -11 -10 -10 -7 -7 -5 -5 -5 -5 -4 -4 -4 -4 -4 -3 -3 -3 -2 -2 -2 -1 -1 ------- Run | Yrd Mat Sub Rec Scr Fac Upp Upp Zhi Pro Fac Upp Upp War Pro Res Qua Res Tes Sec Acc Com Traps Triggered 10 | . . 2 . . . . . . . . . . . . . . 1 . 2 4 1 Indirectly . | . . . . . . . . . . . . . . . . . . . . . . Trap Hack Attempts . | . . . . . . . . . . . . . . . . . . . . . . Triggered . | . . . . . . . . . . . . . . . . . . . . . . Disarmed . | . . . . . . . . . . . . . . . . . . . . . . Reprogrammed . | . . . . . . . . . . . . . . . . . . . . . . Reused . | . . . . . . . . . . . . . . . . . . . . . . Traps Extracted . | . . . . . . . . . . . . . . . . . . . . . . Installed . | . . . . . . . . . . . . . . . . . . . . . . Triggered . | . . . . . . . . . . . . . . . . . . . . . . Machines | -11 -10 -10 -7 -7 -5 -5 -5 -5 -4 -4 -4 -4 -4 -3 -3 -3 -2 -2 -2 -1 -1 ---------- Run | Yrd Mat Sub Rec Scr Fac Upp Upp Zhi Pro Fac Upp Upp War Pro Res Qua Res Tes Sec Acc Com Machines Disabled 60 | . 1 4 1 . 11 . . . . 3 1 1 2 1 4 6 1 4 12 2 6 Max in Single Turn 3 | . 1 2 1 . 3 . . . . 2 1 1 2 1 3 2 1 1 1 1 2 Garrison Access 1 | . . . . . . . . . . 1 . . . . . . . . . . . Phase Generator 1 | . . . . . . . . . . . . . . . . . . . . . 1 Machines Repaired . | . . . . . . . . . . . . . . . . . . . . . . Machines Dismantled . | . . . . . . . . . . . . . . . . . . . . . . Machines Sabotaged . | . . . . . . . . . . . . . . . . . . . . . . Overloaded Fab Kills . | . . . . . . . . . . . . . . . . . . . . . . Hacking | -11 -10 -10 -7 -7 -5 -5 -5 -5 -4 -4 -4 -4 -4 -3 -3 -3 -2 -2 -2 -1 -1 --------- Run | Yrd Mat Sub Rec Scr Fac Upp Upp Zhi Pro Fac Upp Upp War Pro Res Qua Res Tes Sec Acc Com Machines Accessed 84 | . 5 2 11 8 5 . 1 6 . 2 1 . 6 . 3 12 4 9 3 . 6 Terminals 46 | . 5 . 6 . 5 . . . . 1 1 . . . 1 10 4 5 3 . 5 Fabricators 2 | . . . . . . . . . . . . . . . . . . 2 . . . Repair Stations . | . . . . . . . . . . . . . . . . . . . . . . Recycling Units 6 | . . . 3 . . . . . . . . . . . 2 . . . . . 1 Scanalyzers 2 | . . . . . . . . . . . . . . . . 1 . 1 . . . Garrison Access 3 | . . . . . . . . . . 1 . . . . . 1 . 1 . . . Total Hacks 251 | . 12 13 47 45 10 . 1 19 . 4 1 . 6 . 9 24 6 30 12 . 12 Successful 164 | . 8 13 35 45 2 . 1 19 . 2 1 . 6 . 2 8 1 9 8 . 4 Failed 87 | . 4 . 12 . 8 . . . . 2 . . . . 7 16 5 21 4 . 8 Catastrophic 22 | . . . 3 . 2 . . . . 1 . . . . . 8 2 4 . . 2 Database Lockouts . | . . . . . . . . . . . . . . . . . . . . . . Manual 55 | . 9 . 19 . 6 . . . . 1 . . 1 . 4 5 1 4 1 . 4 Terminals 119 | . 12 . 18 . 10 . . . . 2 1 . . . 5 21 6 22 12 . 10 Fabricators 6 | . . . . . . . . . . . . . . . . . . 6 . . . Repair Stations . | . . . . . . . . . . . . . . . . . . . . . . Recycling Units 11 | . . . 5 . . . . . . . . . . . 4 . . . . . 2 Scanalyzers 2 | . . . . . . . . . . . . . . . . 1 . 1 . . . Garrison Access 5 | . . . . . . . . . . 2 . . . . . 2 . 1 . . . Terminal Hacks 140 | . 1 13 26 45 2 . 1 19 . 1 1 . 6 . . 8 1 6 8 . 2 Record 98 | . . 12 24 44 . . . 7 . . 1 . 5 . . 4 . . . . 1 Part Schematic 4 | . . . . . . . . 4 . . . . . . . . . . . . . Robot Analysis 4 | . . . . . . . . 4 . . . . . . . . . . . . . Prototype ID Bank 5 | . . . . . . . . 4 . . . . . . . . . . 1 . . Open Door 5 | . . . . . . . 1 . . . . . 1 . . 1 . . 1 . 1 Branch Access Points 2 | . . . . . 1 . . . . . . . . . . . 1 . . . . Terminal Index 1 | . . . 1 . . . . . . . . . . . . . . . . . . Scanalyzer Index 1 | . . . . . . . . . . . . . . . . . . . 1 . . Alert Level 4 | . . . . . . . . . . 1 . . . . . 1 . 1 1 . . Unreport Threat 4 | . . . . . . . . . . . . . . . . 1 . 2 1 . . Locate Traps 3 | . 1 . . . 1 . . . . . . . . . . . . . 1 . . Recall Extermination 1 | . . . . . . . . . . . . . . . . . . . 1 . . Hauler Manifests 1 | . . . . . . . . . . . . . . . . . . . 1 . . Registered Components 1 | . . . . . . . . . . . . . . . . . . 1 . . . Zone Layout 3 | . . . 1 . . . . . . . . . . . . 1 . 1 . . . Proto ID Catalog 2 | . . 1 . 1 . . . . . . . . . . . . . . . . . Protovariant Controls 1 | . . . . . . . . . . . . . . . . . . 1 . . . Fabricator Hacks 1 | . . . . . . . . . . . . . . . . . . 1 . . . Network Status 1 | . . . . . . . . . . . . . . . . . . 1 . . . Repair Station Hacks . | . . . . . . . . . . . . . . . . . . . . . . Recycling Unit Hacks . | . . . . . . . . . . . . . . . . . . . . . . Scanalyzer . | . . . . . . . . . . . . . . . . . . . . . . Garrison Access Hacks 1 | . . . . . . . . . . 1 . . . . . . . . . . . Seal Access 1 | . . . . . . . . . . 1 . . . . . . . . . . . Unauthorized Hacks 21 | . 7 . 9 . . . . . . . . . . . 2 . . 2 . . 1 Terminals 13 | . 7 . 6 . . . . . . . . . . . . . . . . . . Botnet 3 | . 2 . 1 . . . . . . . . . . . . . . . . . . Skim 10 | . 5 . 5 . . . . . . . . . . . . . . . . . . Fabricators 2 | . . . . . . . . . . . . . . . . . . 2 . . . Report 1 | . . . . . . . . . . . . . . . . . . 1 . . . Haulers 1 | . . . . . . . . . . . . . . . . . . 1 . . . Repair Stations . | . . . . . . . . . . . . . . . . . . . . . . Recycling Units 6 | . . . 3 . . . . . . . . . . . 2 . . . . . 1 Reject 2 | . . . . . . . . . . . . . . . 1 . . . . . 1 Recyclers 1 | . . . . . . . . . . . . . . . 1 . . . . . . Tunnel 3 | . . . 3 . . . . . . . . . . . . . . . . . . Scanalyzers . | . . . . . . . . . . . . . . . . . . . . . . Garrison Access . | . . . . . . . . . . . . . . . . . . . . . . Data Cores Recovered 2 | . . . . . . . . . . . . . . . 1 1 . . . . . Used 1 | . . . . . . . . . . . . . . . . 1 . . . . . Hacking Detections 52 | . 5 . 8 . 5 . . . . 1 . . . . 3 10 4 9 1 . 6 Full Trace Events 5 | . . . . . . . . . . . . . . . 1 4 . . . . . Feedback Events . | . . . . . . . . . . . . . . . . . . . . . . Feedback Blocked . | . . . . . . . . . . . . . . . . . . . . . . Robot Schematics Acquired . | . . . . . . . . . . . . . . . . . . . . . . Robots Built . | . . . . . . . . . . . . . . . . . . . . . . Authchips . | . . . . . . . . . . . . . . . . . . . . . . Time . | . . . . . . . . . . . . . . . . . . . . . . Total Robot Build Rating . | . . . . . . . . . . . . . . . . . . . . . . Part Schematics Acquired 4 | . . . . . . . . 4 . . . . . . . . . . . . . Parts Built . | . . . . . . . . . . . . . . . . . . . . . . Authchips . | . . . . . . . . . . . . . . . . . . . . . . Time . | . . . . . . . . . . . . . . . . . . . . . . Total Part Build Rating . | . . . . . . . . . . . . . . . . . . . . . . Parts Repaired . | . . . . . . . . . . . . . . . . . . . . . . Time . | . . . . . . . . . . . . . . . . . . . . . . Parts Recycled . | . . . . . . . . . . . . . . . . . . . . . . Recycled Matter . | . . . . . . . . . . . . . . . . . . . . . . Retrieved Matter . | . . . . . . . . . . . . . . . . . . . . . . Retrieved Components . | . . . . . . . . . . . . . . . . . . . . . . Parts Scanalyzed . | . . . . . . . . . . . . . . . . . . . . . . Part Schematics Acquired . | . . . . . . . . . . . . . . . . . . . . . . Parts Damaged . | . . . . . . . . . . . . . . . . . . . . . . Bothacking | -11 -10 -10 -7 -7 -5 -5 -5 -5 -4 -4 -4 -4 -4 -3 -3 -3 -2 -2 -2 -1 -1 ------------ Run | Yrd Mat Sub Rec Scr Fac Upp Upp Zhi Pro Fac Upp Upp War Pro Res Qua Res Tes Sec Acc Com Used RIF Installer . | . . . . . . . . . . . . . . . . . . . . . . Robots Hacked 1 | . . . . . . . . . . . . . . . . 1 . . . . . Non-combat . | . . . . . . . . . . . . . . . . . . . . . . Combat 1 | . . . . . . . . . . . . . . . . 1 . . . . . Robot Hacks Applied 1 | . . . . . . . . . . . . . . . . 1 . . . . . parse_system 1 | . . . . . . . . . . . . . . . . 1 . . . . . Relay Couplers Released . | . . . . . . . . . . . . . . . . . . . . . . Fabnet Peak Effective % . | . . . . . . . . . . . . . . . . . . . . . . Robots Rewired 10 | . . . . . . . . . . . 3 1 5 . 1 . . . . . . Allies Hacked 1 | . . . . . . . . . . . . . . . 1 . . . . . . Hacks Repelled . | . . . . . . . . . . . . . . . . . . . . . . Allies | -11 -10 -10 -7 -7 -5 -5 -5 -5 -4 -4 -4 -4 -4 -3 -3 -3 -2 -2 -2 -1 -1 -------- Run | Yrd Mat Sub Rec Scr Fac Upp Upp Zhi Pro Fac Upp Upp War Pro Res Qua Res Tes Sec Acc Com Total Allies 78 | . . . . 1 5 . . . . . 3 1 5 . 1 . . . . 26 36 Largest Group 13 | . . . . 1 5 2 . . . . 3 3 5 5 5 . . . . 6 13 Highest-Rated Group 281 | . . . . 62 238 90 . . . . 144 144 281 281 281 . . . . 83 191 Highest-Rated Ally 64 | . . . . 62 62 47 . . . . 48 48 64 64 64 . . . . 15 15 Total Orders 13 | . . . . . . . . . . . 2 . 6 5 . . . . . . . STAY 8 | . . . . . . . . . . . 1 . 5 2 . . . . . . . FOLLOW 5 | . . . . . . . . . . . 1 . 1 3 . . . . . . . Ally Attacks 251 | . . . . . 100 2 . . . . . 9 7 23 16 . . . . 25 69 Total Damage 5704 | . . . . . 2530 . . . . . . 382 271 695 398 . . . . 470 958 Kills 37 | . . . . . 25 . . . . . . 1 2 4 1 . . . . . 4 Allies Corrupted 2 | . . . . . . . . . . . . . . . 2 . . . . . . Allies Melted . | . . . . . . . . . . . . . . . . . . . . . . Intel | -11 -10 -10 -7 -7 -5 -5 -5 -5 -4 -4 -4 -4 -4 -3 -3 -3 -2 -2 -2 -1 -1 ------- Run | Yrd Mat Sub Rec Scr Fac Upp Upp Zhi Pro Fac Upp Upp War Pro Res Qua Res Tes Sec Acc Com Active Infowar (turns) 12695 | 5 1076 8 . . 657 1067 802 239 761 347 1331 1133 1211 846 442 496 177 399 998 220 480 Optics 9790 | . . . . . . 1053 802 239 761 347 1331 1133 1211 846 442 496 177 399 553 . . Sensors 4983 | . . . . . . . . . . 98 1297 884 585 841 196 . 167 399 516 . . Terrain 1588 | . . . . . 556 997 . . . . . . . . . . . 24 9 . 2 Structural 5294 | . . 8 . . . . 756 239 708 347 1109 854 501 . . . . . 772 . . Seismic 7696 | 5 1076 . . . . 745 600 239 761 344 38 1031 583 620 270 198 174 399 613 . . Decoding 5470 | . . . . . . . . . . 335 1331 1133 1211 846 442 172 . . . . . T.N.C. 109 | . . . . . 107 . . . . . . . . . . . . 2 . . . Triangulation 1 | . . . . . . . . . . . . . . . . . . . . . 1 Cloaking 4 | . . . . . . . . . . . . . 1 . . . . . . . 3 Jamming 819 | . . . . . . . . . . . . . . . 33 . . . 177 220 389 ECM 373 | . . . . . 143 . . . 53 . 44 . . . . . . . 42 . 91 Robot Analysis Total 4 | . . . . . . . . 4 . . . . . . . . . . . . . Derelict Logs Recovered 14 | . . 1 . 5 . 2 1 . 2 . 1 2 . . . . . . . . . Drone Launches . | . . . . . . . . . . . . . . . . . . . . . . Drone Recoveries . | . . . . . . . . . . . . . . . . . . . . . . Decoded 0b10 Intel 66 | . . . . . . . . . . 23 . . . . 30 13 . . . . . Items 66 | . . . . . . . . . . 23 . . . . 30 13 . . . . . Exploration | -11 -10 -10 -7 -7 -5 -5 -5 -5 -4 -4 -4 -4 -4 -3 -3 -3 -2 -2 -2 -1 -1 ------------- Run | Yrd Mat Sub Rec Scr Fac Upp Upp Zhi Pro Fac Upp Upp War Pro Res Qua Res Tes Sec Acc Com Turns Passed 25974 | 81 1632 2003 2006 7475 916 1070 802 239 761 347 1331 1133 1211 846 442 496 177 399 1233 384 990 Spaces Moved 22931 | 58 635 935 802 3931 600 754 442 213 706 542 1656 1788 1667 1517 977 1018 324 872 1375 641 1478 Core 120 | 57 63 . . . . . . . . . . . . . . . . . . . . Treads 4189 | 1 550 935 802 1901 . . . . . . . . . . . . . . . . . Legs 2316 | . . . . . . . . . . . . . . . . . . . 273 641 1402 Wheels 2527 | . 22 . . 2030 475 . . . . . . . . . . . . . . . . Hover 13596 | . . . . . 125 754 442 213 706 542 1656 1788 1667 1517 977 1018 324 872 995 . . Flight . | . . . . . . . . . . . . . . . . . . . . . . Fastest Speed 15 | 50 50 160 232 135 89 91 85 90 94 34 34 34 16 31 15 18 18 25 24 30 30 Average Speed 88 | 54 215 195 237 183 108 104 143 98 100 42 39 39 39 31 27 25 26 29 43 30 34 Slowest Speed 312 | 160 240 240 240 312 155 148 148 146 101 161 40 40 102 31 89 89 28 96 260 30 90 Overloaded Moves 819 | . . . . . . . 6 . 11 62 31 14 157 . 101 233 32 124 48 . . Propulsion Burnouts . | . . . . . . . . . . . . . . . . . . . . . . Robots Hopped . | . . . . . . . . . . . . . . . . . . . . . . Potential Cave-ins 1 | . . . . . . . . . . . . . . . . . . . 1 . . Cave-ins Triggered . | . . . . . . . . . . . . . . . . . . . . . . Teleports 2 | . . . . . . . . . . . . . . . . 1 . . 1 . . Microwarps 15 | . . . . . . . . . . . . . . . . . . . 10 . 5 Exploration Rate (%) 63 | 4 88 46 92 95 23 74 73 63 86 19 96 98 94 99 26 82 10 74 82 24 59 Regions Visited 21 Branch Regions 15 Pre-discovered Areas 13 | . 2 . 4 1 . 1 . 3 1 . . 1 . . . . . . . . . Known Exits Taken 14 | . . 1 1 . 1 . . . 1 1 1 1 1 1 1 1 1 1 1 . . Unknown Exits Taken 7 | 1 1 . . 1 . 1 1 1 . . . . . . . . . . . 1 . Scrap Searched 32 | . . 5 . 9 . 3 4 . 1 . 3 5 . 2 . . . . . . . Spaces Dug 345 | . 10 . 3 . 16 7 6 . . 11 3 . 64 . 58 72 5 11 28 22 29 Terrain Destroyed 3002 | . 64 33 32 . 44 7 8 . 51 16 260 340 217 249 198 72 56 973 242 22 118 Melee 119 | . . . 3 . 16 7 . . . 11 3 . 1 . . 17 5 11 9 19 17 Projectile 75 | . . . 1 . . . 7 . . . . . . . 20 . . . 4 3 40 AOE 2807 | . 64 33 28 . 28 . . . 51 5 257 340 216 249 178 55 51 962 229 . 61 Terrain Rammed . | . . . . . . . . . . . . . . . . . . . . . . Walls Destroyed . | . . . . . . . . . . . . . . . . . . . . . . Machines Disabled . | . . . . . . . . . . . . . . . . . . . . . . Actions | -11 -10 -10 -7 -7 -5 -5 -5 -5 -4 -4 -4 -4 -4 -3 -3 -3 -2 -2 -2 -1 -1 --------- Run | Yrd Mat Sub Rec Scr Fac Upp Upp Zhi Pro Fac Upp Upp War Pro Res Qua Res Tes Sec Acc Com Total 27574 | 84 811 1062 876 4199 813 1017 585 241 748 635 2279 2143 2161 1862 1133 1145 380 973 1824 788 1815 Wait 2838 | 5 79 23 40 188 48 222 111 3 35 20 538 262 316 300 30 23 14 37 313 39 192 Move 22742 | 57 634 934 801 3930 599 753 441 212 705 541 1655 1787 1666 1516 976 1017 323 871 1277 640 1407 Hop . | . . . . . . . . . . . . . . . . . . . . . . Pick Up 251 | 4 23 30 3 38 27 5 7 2 . 11 5 6 10 2 16 9 3 5 29 11 5 Fast Attach 199 | 5 3 8 2 2 11 2 2 9 . 4 . 3 29 4 8 10 9 18 30 14 26 Attach 140 | . 3 3 . 3 19 5 3 . . 6 4 6 7 2 21 5 3 3 25 8 14 Detach 51 | 1 1 . . . 2 2 2 . . . . 1 3 1 7 1 . . 20 . 10 Swap 115 | 1 11 6 4 3 13 6 1 4 3 5 11 6 7 4 3 6 1 . 6 6 8 Drop 360 | 1 8 23 5 35 27 5 5 11 . 24 5 9 41 6 25 16 10 19 28 25 32 Fire 399 | 10 49 27 17 . 12 2 13 . 5 7 31 44 35 26 44 2 1 1 52 1 20 Melee 383 | . . . 4 . 55 15 . . . 17 4 7 11 . . 56 16 19 44 34 101 Ram 1 | . . . . . . . . . . . . . . . 1 . . . . . . Kick . | . . . . . . . . . . . . . . . . . . . . . . Crush . | . . . . . . . . . . . . . . . . . . . . . . Escape Stasis 10 | . . . . . . . . . . . . . . . . . . . . 10 . Rewire 76 | . . . . . . . . . . . 26 12 36 . 2 . . . . . . Trap . | . . . . . . . . . . . . . . . . . . . . . . Miscellaneous 9 | . . 8 . . . . . . . . . . . 1 . . . . . . . Route ------- -11/Scrapyard -10/Materials (discovered 6 exits: *Mat x3 / [*Min x2] / *Sub) -10/Subcaves (discovered 3 exits: Mat x2 / *Rec) -7/Recycling (discovered 2 exits: *Fac / *Scr) -7/Scraptown (discovered 2 exits: *Fac x2) -5/Factory (discovered 5 exits: Fac x3 / *Upp x2) -5/Upper Caves -5/Upper Caves (discovered 2 exits: *Fac / *Zhi) -5/Zhirov -4/Proximity Caves -4/Factory (discovered 2 exits: *Res / *Upp) -4/Upper Caves -4/Upper Caves (discovered 2 exits: *Res / *War) -4/Warlord -3/Proximity Caves -3/Research -3/Quarantine -2/Research (discovered 2 exits: *Tes x2) -2/Testing (discovered 3 exits: *Acc / *Sec / *Frg) -2/Section 7 -1/Access (discovered 2 exits: [Sur] / *Com) -1/Command (discovered 2 exits: [*Sur x2]) History --------- Turn | Location | Event 20 | -11/Scrapyard | Discovered new exit (range 16) 82 | -11/Scrapyard | Entered Materials 83 | -10/Materials | Met a group of wandering Federalists 110 | -10/Materials | Discovered new exit (range 7) 282 | -10/Materials | Discovered new exit (range 16) 312 | -10/Materials | Build established: Mutant 573 | -10/Materials | Discovered new exit (range 11) 696 | -10/Materials | Build established: Scavenger-Mutant 1195 | -10/Materials | Discovered new exit (range 11) 1323 | -10/Materials | Discovered new exit (range 6) 1454 | -10/Materials | Build established: Mutant 1541 | -10/Materials | Learned location of 2 exits from Mines 1576 | -10/Materials | Identified exit to Materials 1601 | -10/Materials | Learned location of Mines (-9) 1615 | -10/Materials | Learned 2 Storage zone layouts 1648 | -10/Materials | Learned 2 Storage zone layouts 1714 | -10/Materials | Entered Subcaves 1715 | -10/Subcaves | Continued accompanying wandering Federalists (6) 1756 | -10/Subcaves | Lost 4 allies 1897 | -10/Subcaves | Disturbed a concealed Subdweller 1937 | -10/Subcaves | Build established: Scavenger-Mutant 2220 | -10/Subcaves | Visited Clippyterm 2224 | -10/Subcaves | Identified exit to Materials 2224 | -10/Subcaves | Identified exit to Recycling 2224 | -10/Subcaves | Learned Research security intel 2242 | -10/Subcaves | Build established: Subdweller-Mutant 2297 | -10/Subcaves | Visited 4L-MR0's lab 2315 | -10/Subcaves | Found Rainbow Chip 2489 | -10/Subcaves | Learned 4 Materials zone layouts 2710 | -10/Subcaves | Core integrity fell below 50% 3154 | -10/Subcaves | Build established: Mutant 3717 | -10/Subcaves | Entered Recycling 4479 | -7/Recycling | Scanned before Scraplab entrance 4513 | -7/Recycling | Entered Scraplab 5148 | -7/Recycling | Learned location of 1 exit from Extension 5206 | -7/Recycling | Learned location of 1 exit from Cetus 5252 | -7/Recycling | Learned Extension trap positions 5265 | -7/Recycling | Discovered new exit (range 16) 5287 | -7/Recycling | Learned location of 2 exits from Factory 5313 | -7/Recycling | Identified exit to Scraptown 5348 | -7/Recycling | Learned location of Lower Caves (-7) 5391 | -7/Recycling | Learned 8 Factory zone layouts 5723 | -7/Recycling | Entered Scraptown 6039 | -7/Scraptown | Heard Great Nut preacher, LISTEN AND RECITE! 6055 | -7/Scraptown | Discovered new exit (range 11) 6167 | -7/Scraptown | Scanned Subdweller tech in exchange for log data 6171 | -7/Scraptown | Learned Research emergency access door positions 6174 | -7/Scraptown | Learned Factory terminal intel 6178 | -7/Scraptown | Learned location of Armory (-3) 6181 | -7/Scraptown | Learned Research security intel 6303 | -7/Scraptown | Visited Assassins FH 6331 | -7/Scraptown | Visited Fellowship of the Rings 6350 | -7/Scraptown | Visited The Evicted 6600 | -7/Scraptown | Visited Bundlers 6735 | -7/Scraptown | Visited IN-MT5's Study 7106 | -7/Scraptown | Visited Shadow of the Wyrm 7160 | -7/Scraptown | Visited Symbiants 7299 | -7/Scraptown | Visited UFD Registry 7299 | -7/Scraptown | Registered with UFD as "Shortsourcer" 7396 | -7/Scraptown | Visited Curators Association 7436 | -7/Scraptown | Visited Scrapoid Pod Storage 7477 | -7/Scraptown | Visited Derelict Rescue Squad 7540 | -7/Scraptown | Visited Scrap Suit Storage 7596 | -7/Scraptown | Visited Abandonware Association 7626 | -7/Scraptown | Learned abandonware demo "REVENGE.EXE" 7760 | -7/Scraptown | Visited Supply Room 7821 | -7/Scraptown | Visited Science Guys 7937 | -7/Scraptown | Delivered Scrap Shield to a Scientist 8206 | -7/Scraptown | Visited Botcube Research 8238 | -7/Scraptown | Visited Junk Cannon Lab 8272 | -7/Scraptown | Found Prototype Special Weapon 8272 | -7/Scraptown | Identified Junk Cannon 8316 | -7/Scraptown | Visited DA-N13 Charitable Foundation 8332 | -7/Scraptown | Found DCF Scrap (30 items) 9957 | -7/Scraptown | Found Scrap Suit 10027 | -7/Scraptown | Found DRS Beacon 10106 | -7/Scraptown | Found Scrapoid Pod 10965 | -7/Scraptown | Build established: Derelict-Mutant 11497 | -7/Scraptown | Build established: Mutant 12168 | -7/Scraptown | Found Botcube 12183 | -7/Scraptown | Botcube activated 12205 | -7/Scraptown | Botcube completed mutation into wheeled form, armed with 2 guns. 12877 | -7/Scraptown | Discovered new exit (range 5) 13123 | -7/Scraptown | Met Optimus 13123 | -7/Scraptown | Accepted into 0bPrime 13135 | -7/Scraptown | Build established: Gladiator 13198 | -7/Scraptown | Entered Factory 13198 | -5/Factory | Accompanied by 1 ally 13198 | -5/Factory | Evolved 10 slots: Power x1, Propulsion x4, Utility x5 13199 | -5/Factory | Identified exit to Factory 13201 | -5/Factory | Loaded intel: 26 terminal locations 13545 | -5/Factory | Build established: Derelict-Gladiator 13852 | -5/Factory | Identified exit to Upper Caves 13907 | -5/Factory | Scrapoid Pod released 05F05-D (x5) 14034 | -5/Factory | Garrison activated, responded to threat 14098 | -5/Factory | First assault squad dispatched 14114 | -5/Factory | Entered Upper Caves 14114 | -5/Upper Caves | Accompanied by 2 allies 14116 | -5/Upper Caves | UFD Scientist delivered a prototype 14119 | -5/Upper Caves | Found Prototype Protection 14121 | -5/Upper Caves | Encountered a Warlord checkpoint 14872 | -5/Upper Caves | Identified Enh. Scrap Shield 15068 | -5/Upper Caves | Spotted B-75 Beast 15071 | -5/Upper Caves | Learned location of Warlord (-4) 15162 | -5/Upper Caves | Discovered new exit (range 11) 15184 | -5/Upper Caves | Entered another Upper Caves area 15212 | -5/Upper Caves | Discovered exit to Factory (range 5) 15534 | -5/Upper Caves | Build established: Scavenger-Mutant 15807 | -5/Upper Caves | Discovered new exit (range 13) 15907 | -5/Upper Caves | Learned Factory stockpile data 15968 | -5/Upper Caves | Attracted the attention of an 0b10 checkpoint 15986 | -5/Upper Caves | Entered Zhirov 15986 | -5/Zhirov | Discovered new exit (range 3) 16009 | -5/Zhirov | Met Zhirov 16029 | -5/Zhirov | Learned location of Quarantine (-3) 16029 | -5/Zhirov | Learned location of Command (-1) 16043 | -5/Zhirov | Zhirov requested help retrieving the SGEMP Prototype 16057 | -5/Zhirov | Found Alien Artifact 16057 | -5/Zhirov | Identified Integrated Reactor 16057 | -5/Zhirov | Installed Integrated Reactor, increased core energy generation (+10) 16179 | -5/Zhirov | Found Alien Artifact 16225 | -5/Zhirov | Entered Proximity Caves 16454 | -4/Proximity Caves | Attracted the attention of an 0b10 checkpoint 16672 | -4/Proximity Caves | Learned 4 Research zone layouts 16851 | -4/Proximity Caves | Discovered exit to Factory (range 19) 16986 | -4/Proximity Caves | Entered Factory 16986 | -4/Factory | Evolved 2 slots: Utility x2 17159 | -4/Factory | Discovered new exit (range 4) 17243 | -4/Factory | Identified exit to Upper Caves 17283 | -4/Factory | Discovered new exit (range 4) 17283 | -4/Factory | Identified exit to Research 17333 | -4/Factory | Entered Upper Caves 17335 | -4/Upper Caves | Attracted the attention of an 0b10 checkpoint 17602 | -4/Upper Caves | Spotted B-86 Titan 17605 | -4/Upper Caves | Learned Research trap positions 17798 | -4/Upper Caves | Build established: Scavenger-Scout 18081 | -4/Upper Caves | Attacked by a delusional Derelict stockpiling Unaware 18416 | -4/Upper Caves | Destroyed B-86 Titan 18461 | -4/Upper Caves | Discovered new exit (range 5) 18478 | -4/Upper Caves | Identified exit to Upper Caves 18664 | -4/Upper Caves | Entered another Upper Caves area 18664 | -4/Upper Caves | Accompanied by 3 allies 18665 | -4/Upper Caves | Identified exit to Warlord 18705 | -4/Upper Caves | Lost 3 allies 18788 | -4/Upper Caves | Learned Research terminal intel 18791 | -4/Upper Caves | Discovered exit to Research (range 5) 18996 | -4/Upper Caves | Attracted the attention of an 0b10 outpost 19797 | -4/Upper Caves | Entered Warlord 19818 | -4/Warlord | Discovered new exit (range 14) 20044 | -4/Warlord | Received a Watcher feed algorithm from an ecstatic Tinkerer 20124 | -4/Warlord | Warlord's base attacked by MAIN.C 20128 | -4/Warlord | Rebuked by Warlord 20166 | -4/Warlord | Found Prototype Energy Gun 20166 | -4/Warlord | Identified Vortex Rifle 20169 | -4/Warlord | Found Prototype Energy Cannon 20169 | -4/Warlord | Identified Vortex Driver 20172 | -4/Warlord | Found Prototype Launcher 20172 | -4/Warlord | Identified Vortex Catalyst Activator 20310 | -4/Warlord | Found Prototype Device 20310 | -4/Warlord | Identified Exp. Focal Shield 20317 | -4/Warlord | Found Prototype Reactor 20317 | -4/Warlord | Identified Vortex Chain Reactor 20326 | -4/Warlord | Found Prototype Device 20326 | -4/Warlord | Identified Exp. Cloaking Device 20387 | -4/Warlord | Attached Rainbow Chip, gained temporary slots: Power, Propulsion, Utility, Weapon 20474 | -4/Warlord | Warlord forces counterattacked 20492 | -4/Warlord | Spotted Striker 20494 | -4/Warlord | Spotted Striker 20537 | -4/Warlord | Spotted B-90 Cyclops 20542 | -4/Warlord | Destroyed 15 combat bots 20580 | -4/Warlord | Found Quantum Capacitor 20607 | -4/Warlord | Lost 14 allies 20624 | -4/Warlord | Spotted Striker 20624 | -4/Warlord | Spotted Executioner 20624 | -4/Warlord | Spotted Striker 20629 | -4/Warlord | Destroyed Executioner 20652 | -4/Warlord | Destroyed 12 combat bots 20697 | -4/Warlord | Build established: Commander-Sprinter 20724 | -4/Warlord | Spotted Executioner 20769 | -4/Warlord | Lost 13 allies 20788 | -4/Warlord | Found Prototype Processor 20788 | -4/Warlord | Identified Exp. Core Analyzer 20799 | -4/Warlord | Warlord base infiltrated, sounded retreat 20821 | -4/Warlord | Spotted Striker 20852 | -4/Warlord | Spotted B-90 Cyclops 20884 | -4/Warlord | Lost 3 allies 20924 | -4/Warlord | Spotted B-90 Cyclops 20928 | -4/Warlord | Spotted Executioner 20930 | -4/Warlord | Spotted Executioner 20973 | -4/Warlord | Lost 6 allies 20979 | -4/Warlord | Identified exit to Proximity Caves 21008 | -4/Warlord | Entered Proximity Caves 21008 | -3/Proximity Caves | Accompanied by 5 allies 21186 | -3/Proximity Caves | Activated DRS Beacon 21307 | -3/Proximity Caves | Build established: Scavenger-Scout 21426 | -3/Proximity Caves | Attracted the attention of an 0b10 outpost 21474 | -3/Proximity Caves | Destroyed 8 combat bots 21571 | -3/Proximity Caves | Discovered exit to Research (range 14) 21854 | -3/Proximity Caves | Entered Research 21854 | -3/Research | Accompanied by 5 allies 21854 | -3/Research | Evolved 2 slots: Propulsion x1, Utility x1 21856 | -3/Research | Loaded intel: 83 trap records 21859 | -3/Research | Loaded intel: 23 terminal locations 22228 | -3/Research | Spotted B-86 Titan 22296 | -3/Research | Discovered new exit (range 7) 22296 | -3/Research | Identified exit to Quarantine 22296 | -3/Research | Entered Quarantine 22318 | -3/Quarantine | Found Alien Slashing Weapon 22318 | -3/Quarantine | Identified Sigix Broadsword 22401 | -3/Quarantine | Cryocooling Duct disabled 22416 | -3/Quarantine | Ambient heat levels rising (+20) 22416 | -3/Quarantine | Non-combat units ordered to evacuate 22462 | -3/Quarantine | Discovered new exit (range 10) 22511 | -3/Quarantine | Found Alien Artifact 22511 | -3/Quarantine | Identified Core Reset Matrix 22511 | -3/Quarantine | Identified Transdimensional Reconstructor 22511 | -3/Quarantine | Used Core Reset Matrix 22515 | -3/Quarantine | Detected hypermatrix surge 22515 | -3/Quarantine | Sensed 13 artifacts in vicinity 22515 | -3/Quarantine | Met incapacitated Sigix Warrior 22515 | -3/Quarantine | Lockdown squad dispatched 22516 | -3/Quarantine | Acquired the access code to the Sigix quarantine chamber 22517 | -3/Quarantine | Unlocked Sigix quarantine chamber 22518 | -3/Quarantine | Found Sigix Containment Pod 22546 | -3/Quarantine | First assault squad dispatched 22582 | -3/Quarantine | Spotted Alpha 7 22603 | -3/Quarantine | Warped through subspace 22617 | -3/Quarantine | Discovered new exit (range 12) 22629 | -3/Quarantine | Found Hpw. Transdimensional Reconstructor 22645 | -3/Quarantine | Build established: Scavenger-Sprinter 22718 | -3/Quarantine | System corruption reached 10% 22786 | -3/Quarantine | Found Sigix Terminator 22791 | -3/Quarantine | Identified exit to Research 22792 | -3/Quarantine | Entered Research 22792 | -2/Research | Evolved 1 slot: Utility x1 22952 | -2/Research | Discovered new exit (range 17) 22952 | -2/Research | Identified exit to Testing 22969 | -2/Research | Entered Testing 23004 | -2/Testing | Protovariant out of control (PG-834MO7G19C) 23004 | -2/Testing | Unleashed a protovariant (PG-834MO7G19C) 23014 | -2/Testing | Found Quantum Capacitor 23036 | -2/Testing | Found Prototype Processor 23036 | -2/Testing | Identified Spectral Analyzer 23070 | -2/Testing | Found Prototype Hackware 23070 | -2/Testing | Identified Ghost Barrier 23130 | -2/Testing | Discovered new exit (range 8) 23132 | -2/Testing | Identified exit to Access 23301 | -2/Testing | Spotted Fortress 23314 | -2/Testing | Fired Sigix Terminator 23338 | -2/Testing | Build established: Hacker-Scout 23345 | -2/Testing | Lost 5 parts (2p2n1u) 23353 | -2/Testing | Discovered new exit (range 7) 23353 | -2/Testing | Discovered new exit (range 6) 23355 | -2/Testing | Identified exit to Protoforge 23356 | -2/Testing | Identified exit to Section 7 23368 | -2/Testing | Entered Section 7 23369 | -2/Section 7 | Detected hypermatrix surge 23369 | -2/Section 7 | Sensed 21 artifacts in vicinity 23414 | -2/Section 7 | Found Microwarp Drive 23848 | -2/Section 7 | Spotted B-90 Cyclops 23868 | -2/Section 7 | Discovered exit to Access (range 20) 23918 | -2/Section 7 | Spotted S7 Guard 23923 | -2/Section 7 | Found Core Physics Calibrator 23955 | -2/Section 7 | Lost 3 parts (1n2u) 23970 | -2/Section 7 | Garrison activated, responded to threat 23994 | -2/Section 7 | Warped through subspace 24010 | -2/Section 7 | Found Unknown Launcher 24010 | -2/Section 7 | Identified Gamma Bomb Array 24017 | -2/Section 7 | Lost 9 parts (1p4n3u1w) 24130 | -2/Section 7 | Core integrity fell below 50% 24159 | -2/Section 7 | Lost 4 parts (1p2n1w) 24164 | -2/Section 7 | Found Integrated Dissipator 24164 | -2/Section 7 | Installed Integrated Dissipator, increased core heat dissipation (+20) 24234 | -2/Section 7 | Spotted Alpha 7 24269 | -2/Section 7 | Garrison activated, responded to threat 24297 | -2/Section 7 | Found Integrated Reactor 24297 | -2/Section 7 | Installed Integrated Reactor, increased core energy generation (+10) 24315 | -2/Section 7 | Spotted B-99 Colossus 24331 | -2/Section 7 | Found Integrated Reactor 24331 | -2/Section 7 | Installed Integrated Reactor, increased core energy generation (+10) 24347 | -2/Section 7 | Found LRC Energy Well 24347 | -2/Section 7 | Installed LRC Energy Well, increased energy storage capacity (+250) 24349 | -2/Section 7 | Found LRC Matter Compressor 24349 | -2/Section 7 | Installed LRC Matter Compressor, increased matter storage capacity (+125) 24368 | -2/Section 7 | First assault squad dispatched 24370 | -2/Section 7 | Build established: Alien-Mutant 24374 | -2/Section 7 | Spotted Alpha 7 24409 | -2/Section 7 | Core integrity fell below 20% 24450 | -2/Section 7 | Integrated with Sigix Exoskeleton 24451 | -2/Section 7 | Sigix Warrior commented on Exoskeleton integration 24519 | -2/Section 7 | Found Sigix Sheargun 24527 | -2/Section 7 | Spotted Executioner 24528 | -2/Section 7 | Spotted Executioner 24531 | -2/Section 7 | Spotted Striker 24531 | -2/Section 7 | Spotted Striker 24551 | -2/Section 7 | Found Hpw. Transdimensional Reconstructor 24557 | -2/Section 7 | Found Terrabomb 24563 | -2/Section 7 | Spotted Executioner 24563 | -2/Section 7 | Spotted Executioner 24601 | -2/Section 7 | Entered Access 24601 | -1/Access | Evolved 2 slots: Utility x2 24606 | -1/Access | Emitted hypermatrix ping 24611 | -1/Access | Assembled emerged from beneath the floor 24619 | -1/Access | Garrison activated, responded to threat 24768 | -1/Access | Build established: Alien-Sigix 24790 | -1/Access | Discovered new exit (range 16) 24807 | -1/Access | Assembled emerged from beneath the floor 24852 | -1/Access | Assembled emerged from beneath the floor 24880 | -1/Access | Found Unknown Protection 24880 | -1/Access | Identified Hvy. Reflective Plating 24940 | -1/Access | Discovered new exit (range 16) 24941 | -1/Access | Assembled emerged from beneath the floor 24985 | -1/Access | Entered Command 24990 | -1/Command | Emitted hypermatrix ping 24995 | -1/Command | Assembled emerged from beneath the floor 25042 | -1/Command | Phase Generator disabled 25052 | -1/Command | Found Prototype Device 25052 | -1/Command | Identified Adv. EM Shield 25103 | -1/Command | Assembled emerged from beneath the floor 25217 | -1/Command | Discovered new exit (range 17) 25235 | -1/Command | First assault squad dispatched 25396 | -1/Command | Assembled emerged from beneath the floor 25420 | -1/Command | Assembled emerged from beneath the floor 25466 | -1/Command | Lost 5 allies 25472 | -1/Command | Spotted B-99 Colossus 25567 | -1/Command | Spotted M Guard 25567 | -1/Command | Spotted M Guard 25570 | -1/Command | Spotted Combat Programmer 25571 | -1/Command | Spotted Combat Programmer 25606 | -1/Command | Assembled emerged from beneath the floor 25610 | -1/Command | Destroyed Combat Programmer 25729 | -1/Command | Met MAIN.C 25734 | -1/Command | 0b10 Conduit disabled 25762 | -1/Command | MAIN.C's shell transforms into a squad of autonomous robots 25762 | -1/Command | Destroyed MAIN.C Shell 25762 | -1/Command | Spotted M Shell/Def 25762 | -1/Command | Spotted M Shell/Atk 25762 | -1/Command | Spotted M Shell/Def 25762 | -1/Command | Spotted M Shell/Atk 25762 | -1/Command | Spotted M Shell/Atk 25762 | -1/Command | Spotted M Shell/Def 25762 | -1/Command | Spotted M Shell/Atk 25762 | -1/Command | Spotted M Shell/Def 25763 | -1/Command | MAIN.C activated Command garrisons 25765 | -1/Command | Sigix Exoskeleton integrity reduced to 80% 25768 | -1/Command | Used Terrabomb 25841 | -1/Command | Discovered new exit (range 15) 25849 | -1/Command | Sigix Exoskeleton integrity reduced to 60% 25849 | -1/Command | Core integrity fell below 50% 25912 | -1/Command | Sigix Exoskeleton integrity reduced to 40% 25936 | -1/Command | Core integrity fell below 20% 25938 | -1/Command | Sigix Exoskeleton integrity reduced to 20% 25975 | -1/Command | Destroyed by G-73 Enforcer with Phase Gun Last Messages --------------- 25935_ Slug penetrates Wall. 25935_ Knocked back. 25935_ Microwarped (distance 4). 25935_ Slug penetrates Wall. 25935_ Penetrated by Slug. 25936_ M Shell/Def knocked back. 25936_ Microwarped (distance 6). 25937_ Microwarped (distance 31). 25938_ Exo-853F: "Integrity reduced to 20%, immediate ERK application recommended to prevent critical system failure." 25953_ Knocked back. 25954_ System corrupted: Quantum Reactor rejected. 25955_ Acquired Quantum Reactor. 25960_ Destroyed Prototype Protection. 25964_ Destroyed Prototype Ballistic Gun. 25965_ The unstable cave ceiling collapses. 25966_ Knocked back. 25971_ Sneak attack on M-36 Artificer. 25971_ Destroyed Unknown Engine. 25971_ M-36 Artificer destroyed. 25973_ Penetrated by Slug. Map ----- +----------------------------------------------------+ | ?????????????????????????????????????????????????? | | ?????????????????????????????????????????????????? | | ??????????????????????????????????????????????#### | | ???????????????????????????????????????????####### | | ??????????????????????????????????????????######## | | ????????????????????????#???????????????########## | | ???????????????????###########?????????########### | | ????????????????#################?????############ | | ??????????????#####################??############# | | ???????????####################################### | | ??????????######################################## | | ????????########################################## | | ???????########################################### | | ??????############################################ | | ?????############################################# | | ?????############################################# | | ????############################################## | | ???############################################### | | ???#################################### | | ???#################################### | | ??##################################### ! ! | | ??################# ############# | | ??################# ############# ! % | | ??################# ####################"### | | ??################# % =############### #### | | ?################## XM%= hh ! % | | ??################# % #!% h h Y | | ??################# #g#### #### #### #### | | ??################# # ####+####+##### ##### | | ??################; # ### # ##### | | ??################# # ### + ##### | | ???################ [ #g### # #### | | ???####################g###g### # ##### | | ???################ * # # ##### | | ????############### # # ##### | | ?????##############! """"" ############# ##### | | ?????############## ""T"" ############# ## | | ?????############## o # # ## | | ??????############# # # | | ??????############# "" + # " | | ???????############ """" # + " | | ????????########### """" # # " | | ????????########### "" # % # " | | ????????########### # # | | ???????############ # ! # | | ??????############# # ######### #### | | ??????####### ############# ## # #### | | ??????####### ] ############# ## = + | | ?????######## * ############# ## #### | | ?????######## ############# ## #### | +----------------------------------------------------+ Best States ------------- Heat Dissipation 161 Energy Generation 97 Energy Capacity 1110 Matter Stores 425 Matter Capacity 425 Sight Range 22 Robot Scan Range 16 Terrain Scan Range 16 Terrain Scan Density 210 ECM Strength 2 Jamming Range 16 Power Amplification 30 Corruption Block 20 Armor Coverage 800 Resistance: KI 50 Resistance: TH 50 Resistance: EX 50 Resistance: EM 50 Resistance: I 50 Resistance: S 50 Resistance: P 50 Point Defense Rating 80 Melee Speed Boost 50 Phase Shifting 15 Evasion (%) 84 Targeting Accuracy 8 Melee Accuracy 8 Target Analysis 8 Core Analysis 8 Recoil Reduction 2 Offensive Hacking 12 Defensive Hacking 20 Authchip Count 1 Trap Extractor Capacity 8 Item Schematics ----------------- None Robot Schematics ------------------ None Fabricated ------------ Nothing Repaired ---------- Nothing Alien Tech Used ----------------- Integrated Reactor Sigix Broadsword Core Reset Matrix Transdimensional Reconstructor Sigix Terminator Core Physics Calibrator High-powered Transdimensional Reconstructor Microwarp Drive Integrated Dissipator LRC Energy Well LRC Matter Compressor Sigix Exoskeleton Sigix Sheargun Terrabomb Achievements -------------- Whoosh! Challenges ------------ None Game ------ Seed HybridWeaponMask Manual? 0 Play Time 06:12:53 Cumulative 327.6 hours Start 2025.09.20 @ 16:56:31 End 2025.09.21 @ 02:48:45 Sessions 9 Manual Loads 0 Difficulty Rogue Special Mode None Game No. 169 Rogue 169 Adventurer 0 Explorer 0 Win Type - Total 1 Types 0/0/0/0/1/0/0/0/0/0 Lore% 81 Gallery% 78 Achievement% 66 Wizard Run 0 Options --------- Layout 0 ASCII 0 Keyboard 0 Movement Mouse Keybinds 0 Fullscreen 1 Font 24/Smallcaps Map View 183x50 Zoom Use 0% Tactical HUD 1 Map Filters NONE Filters NONE Steam 0 RUN: bf23e558-308c-43ae-b047-18e759ea4560